Cogmind - Beta 13 @@@ ROGUE MODE // 2024.05.28 @ 19:49:26 Player: Falling_Sands Result: Destroyed by Y-54 Guardian with Gatling Laser Performance ------------- Evolutions (0) 0 Regions Visited (3) 600 Robots Destroyed (14) 70 Value Destroyed (148) 148 Prototype IDs (0) 0 Alien Tech Used (0) 0 Bonus (0) 0 TOTAL SCORE: 818 Bonus ------- None Cogmind --------- Core Integrity 0/250 Matter 265/300 Energy 250/250 System Corruption 0% Temperature Cool (6) Movement Walking (130) Location -7/Recycling Parts ------- > --- POWER (1) -------- Ion Engine > --- PROPULSION (2) --- Improved Titanium Leg Improved Titanium Leg > --- UTILITY (2) ------ Small Storage Unit > --- WEAPON (2) ------- Small Laser > --- INVENTORY (8) ---- Improved Titanium Leg Improved Titanium Leg Improved Titanium Leg Compact Wheel Scrap Engine Peak State ------------ > --- POWER ------------ Ion Engine > --- PROPULSION ------- Improved Titanium Leg Improved Titanium Leg > --- UTILITY ---------- Small Storage Unit > --- WEAPON ----------- Medium Laser Small Laser > --- INVENTORY -------- Improved Titanium Leg Compact Wheel Scrap Engine [Rating: 14] Favorites ----------- Power Ion Engine Engine Ion Engine Propulsion Wheel Leg Improved Titanium Leg Wheel Wheel Hover Unit Hover Unit Utility Small Storage Unit Device Seismic Detector Storage Small Storage Unit Weapon Light Assault Rifle Energy Gun Medium Laser Ballistic Gun Light Assault Rifle Special Weapon Mining Laser Build | -11 -10 -10 -7 ------- Run | Yrd Mat Sub Rec Slots Evolved . | . . . . Power . | . . . . Propulsion . | . . . . Utility . | . . . . Weapon . | . . . . Parts Attached 19 | 7 4 4 4 Power 2 | 1 . . 1 Engine 2 | 1 . . 1 Core . | . . . . Reactor . | . . . . Propulsion 5 | 2 . 1 2 Treads . | . . . . Leg 2 | . . . 2 Wheel 2 | 2 . . . Hover 1 | . . 1 . Flight . | . . . . Utility 3 | 2 . 1 . Device 1 | 1 . . . Storage 2 | 1 . 1 . Processor . | . . . . Hackware . | . . . . Protection . | . . . . Artifact . | . . . . Weapon 9 | 2 4 2 1 Energy Gun 3 | 1 . 1 1 Energy Cannon . | . . . . Ballistic Gun 4 | 1 2 1 . Ballistic Cannon . | . . . . Launcher . | . . . . Special Weapon 2 | . 2 . . Impact Weapon . | . . . . Slashing Weapon . | . . . . Piercing Weapon . | . . . . Special Melee Weapon . | . . . . Unidentified Prototypes . | . . . . Parts Lost 10 | . 1 8 1 Power 1 | . . 1 . Propulsion 3 | . . 3 . Utility 2 | . 1 1 . Weapon 4 | . . 3 1 Highest Loss Streak 7 | . 1 7 1 To Critical Strikes . | . . . . Average Slot Usage (%) 77 | . 95 81 54 Engine 11 | . 14 14 6 Leg 4 | . . . 13 Wheel 17 | . 28 24 . Device 3 | . 9 . . Storage 14 | . 14 15 14 Energy Gun 9 | . 4 1 20 Ballistic Gun 11 | . 18 17 . Special Weapon 3 | . 5 6 . Naked Turns . | . . . . Heaviest Build 16 | 14 14 16 13 Greatest Support 40 | 26 26 26 40 Greatest Overweight (x) 4 | . . 4 2 Average Overweight (x) . | . . . . Largest Inventory Capacity 8 | 8 8 8 8 Average Capacity 7 | 7 8 8 8 Most Carried 8 | 3 8 7 6 Average Carried 4 | 2 4 6 5 Final Capacity 8 | 8 8 8 8 Final Carried 7 | 3 7 3 6 Class Distribution -------------------- 100% | Mutant Dominant Class ---------------- Mutant | -10/Materials Mutant | -10/Subcaves Mutant | -7/Recycling Resources | -11 -10 -10 -7 ----------- Run | Yrd Mat Sub Rec Matter Collected 371 | 305 48 18 . Remotely . | . . . . Salvage Created 364 | 244 120 . . Parts 31 | 19 12 . . Haulers Intercepted . | . . . . Recyclers Shooed . | . . . . Parts Field Recycled . | . . . . Retrieved Matter . | . . . . Parts Self-Destructed 3 | . . 3 . Prevented . | . . . . Kills | -11 -10 -10 -7 ------- Run | Yrd Mat Sub Rec Combat Hostiles Destroyed 5 | . 5 . . Guns 5 | . 5 . . Classes Destroyed 5 | 3 2 . . Worker 2 | 2 . . . Tunneler 6 | 6 . . . Recycler 1 | 1 . . . Swarmer 3 | . 3 . . Grunt 2 | . 2 . . Best Kill Streak 3 | 2 3 . . Combat Bots Only 3 | . 3 . . Max Kills in Single Turn 1 | 1 1 . . Gunslinging . | . . . . Exploded . | . . . . Melee . | . . . . Uniques/NPCs Destroyed . | . . . . Combat | -11 -10 -10 -7 -------- Run | Yrd Mat Sub Rec Hostile Shots Fired 173 | . 19 115 39 Missed 62 | . 4 38 20 Damage Taken 892 | . 152 599 141 Core 254 | . 34 188 32 Absorbed by Shields . | . . . . Core Remaining (%) 100 | 100 . . . Volleys Fired 57 | 35 22 . . Largest 2 | 2 2 . . Hottest 100 | 70 100 . . Shots Fired 105 | 70 35 . . Gun 96 | 70 26 . . Cannon . | . . . . Launcher . | . . . . Special 9 | . 9 . . Kinetic 58 | 35 23 . . Thermal 47 | 35 12 . . Explosive . | . . . . Electromagnetic . | . . . . Robot Hit Streak 11 | 9 11 . . Robot Miss Streak 4 | 4 1 . . Penetration Max . | . . . . Secondary Targets . | . . . . Shots Hit Robots 62 | 41 21 . . Core Hits 19 | 11 8 . . Critical Kills 1 | 1 . . . Critical Parts Destroyed 1 | . 1 . . Critical Strikes 2 | 1 1 . . Destroy 2 | 1 1 . . Melee Attacks . | . . . . Impact . | . . . . Slashing . | . . . . Piercing . | . . . . Sneak Attacks . | . . . . Combat Hostiles . | . . . . Follow-up Attacks . | . . . . Damage Inflicted 615 | 425 190 . . Guns 615 | 425 190 . . Cannons . | . . . . Explosions . | . . . . Melee . | . . . . Ramming . | . . . . Kinetic 327 | 175 152 . . Thermal 288 | 250 38 . . Explosive . | . . . . Electromagnetic . | . . . . Impact . | . . . . Slashing . | . . . . Piercing . | . . . . Highest Corruption . | . . . . Average Corruption . | . . . . Corruption Purged . | . . . . Corruption Blocked . | . . . . Overload Shots . | . . . . Overflow Damage . | . . . . Projectiles . | . . . . Explosions . | . . . . Melee . | . . . . Knockbacks . | . . . . Impact . | . . . . Kinetic . | . . . . Secondary . | . . . . Self-Inflicted Damage . | . . . . Shots . | . . . . Rammed . | . . . . Targets Rammed . | . . . . Kicked . | . . . . Crushed . | . . . . Highest Temperature 80 | 80 70 . . Average Temperature 28 | 34 15 . . Received Heat Transfer 354 | . 60 252 42 Siege Activations . | . . . . Robots Corrupted . | . . . . Combat Hostiles . | . . . . Parts Fried . | . . . . Impact Corruptions . | . . . . Robots Melted . | . . . . Combat Hostiles . | . . . . Parts Melted . | . . . . Heat Transferred 851 | 740 111 . . Parts Sabotaged . | . . . . Parts Stolen . | . . . . Parts Stripped . | . . . . Power Chain Reactions . | . . . . Alert | -11 -10 -10 -7 ------- Run | Yrd Mat Sub Rec Peak Influence 420 | 45 249 . 420 Initial 382 | . 29 . 382 Average 182 | 25 151 . 403 Maximum Alert Level 2 | . 1 . 2 Low Security (%) 58 | 100 66 . . Level 1 19 | . 33 . 26 Level 2 22 | . . . 73 Level 3 . | . . . . Level 4 . | . . . . Level 5 . | . . . . High Security . | . . . . Max Security . | . . . . Squads Dispatched 2 | . 2 . . Investigation 1 | . 1 . . Extermination . | . . . . Reinforcement 1 | . 1 . . Assault . | . . . . Garrison . | . . . . Intercept . | . . . . Searches Triggered . | . . . . Construction Impeded . | . . . . Haulers Reinforced . | . . . . Active Scanning Responses . | . . . . Cargo Convoy Interrupts . | . . . . Stealth | -11 -10 -10 -7 --------- Run | Yrd Mat Sub Rec Distress Signals 1 | . 1 . . Communications Jammed . | . . . . Distress Signals . | . . . . Times Spotted 65 | . 9 55 1 Peak Tracking Total 8 | . 3 8 1 Tactical Retreats 6 | . 3 3 . Traps | -11 -10 -10 -7 ------- Run | Yrd Mat Sub Rec Traps Triggered . | . . . . Indirectly . | . . . . Trap Hack Attempts . | . . . . Triggered . | . . . . Disarmed . | . . . . Reprogrammed . | . . . . Reused . | . . . . Traps Extracted . | . . . . Installed . | . . . . Triggered . | . . . . Machines | -11 -10 -10 -7 ---------- Run | Yrd Mat Sub Rec Machines Disabled . | . . . . Max in Single Turn . | . . . . Machines Repaired . | . . . . Machines Dismantled . | . . . . Machines Sabotaged . | . . . . Overloaded Fab Kills . | . . . . Hacking | -11 -10 -10 -7 --------- Run | Yrd Mat Sub Rec Machines Accessed 9 | . 3 . 6 Terminals 6 | . 3 . 3 Fabricators . | . . . . Repair Stations . | . . . . Recycling Units 3 | . . . 3 Scanalyzers . | . . . . Garrison Access . | . . . . Total Hacks 32 | . 12 . 20 Successful 11 | . 6 . 5 Failed 21 | . 6 . 15 Catastrophic 4 | . . . 4 Database Lockouts . | . . . . Manual 10 | . 5 . 5 Terminals 21 | . 12 . 9 Fabricators . | . . . . Repair Stations . | . . . . Recycling Units 11 | . . . 11 Scanalyzers . | . . . . Garrison Access . | . . . . Terminal Hacks 6 | . 4 . 2 Record 2 | . . . 2 Locate Traps 1 | . 1 . . Maintenance Status 1 | . 1 . . Registered Components 1 | . 1 . . Zone Layout 1 | . 1 . . Fabricator Hacks . | . . . . Repair Station Hacks . | . . . . Recycling Unit Hacks 2 | . . . 2 Retrieve Matter 1 | . . . 1 Retrieve Components 1 | . . . 1 Scanalyzer . | . . . . Garrison Access Hacks . | . . . . Unauthorized Hacks 3 | . 2 . 1 Terminals 3 | . 2 . 1 Botnet 3 | . 2 . 1 Fabricators . | . . . . Repair Stations . | . . . . Recycling Units . | . . . . Scanalyzers . | . . . . Garrison Access . | . . . . Data Cores Recovered . | . . . . Used . | . . . . Hacking Detections 9 | . 3 . 6 Full Trace Events 7 | . 1 . 6 Feedback Events . | . . . . Feedback Blocked . | . . . . Robot Schematics Acquired . | . . . . Robots Built . | . . . . Authchips . | . . . . Time . | . . . . Total Robot Build Rating . | . . . . Part Schematics Acquired . | . . . . Parts Built . | . . . . Authchips . | . . . . Time . | . . . . Total Part Build Rating . | . . . . Parts Repaired . | . . . . Time . | . . . . Parts Recycled . | . . . . Recycled Matter . | . . . . Retrieved Matter . | . . . . Retrieved Components . | . . . . Parts Scanalyzed . | . . . . Part Schematics Acquired . | . . . . Parts Damaged . | . . . . Bothacking | -11 -10 -10 -7 ------------ Run | Yrd Mat Sub Rec Used RIF Installer . | . . . . Robots Hacked . | . . . . Non-combat . | . . . . Combat . | . . . . Robot Hacks Applied . | . . . . Relay Couplers Released . | . . . . Fabnet Peak Effective % . | . . . . Robots Rewired . | . . . . Allies Hacked . | . . . . Hacks Repelled . | . . . . Allies | -11 -10 -10 -7 -------- Run | Yrd Mat Sub Rec Total Allies . | . . . . Largest Group . | . . . . Highest-Rated Group . | . . . . Highest-Rated Ally . | . . . . Total Orders . | . . . . Ally Attacks . | . . . . Total Damage . | . . . . Kills . | . . . . Allies Corrupted . | . . . . Allies Melted . | . . . . Intel | -11 -10 -10 -7 ------- Run | Yrd Mat Sub Rec Robot Analysis Total . | . . . . Derelict Logs Recovered . | . . . . Drone Launches . | . . . . Drone Recoveries . | . . . . Exploration | -11 -10 -10 -7 ------------- Run | Yrd Mat Sub Rec Turns Passed 964 | 286 277 160 241 Spaces Moved 734 | 195 207 166 166 Core 88 | 2 . 4 82 Treads . | . . . . Legs 84 | . . . 84 Wheels 557 | 193 207 157 . Hover 5 | . . 5 . Flight . | . . . . Fastest Speed 50 | 50 90 90 130 Average Speed 102 | 89 90 94 139 Slowest Speed 250 | 90 90 250 150 Overloaded Moves . | . . . . Propulsion Burnouts . | . . . . Robots Hopped . | . . . . Cave-ins Triggered . | . . . . Exploration Rate (%) 28 | 4 52 14 42 Regions Visited 3 Branch Regions 2 Pre-discovered Areas . | . . . . Known Exits Taken . | . . . . Unknown Exits Taken 3 | 1 1 1 . Scrap Searched . | . . . . Spaces Dug 9 | . 9 . . Terrain Destroyed 9 | . 9 . . Melee . | . . . . Projectile 9 | . 9 . . AOE . | . . . . Terrain Rammed . | . . . . Walls Destroyed . | . . . . Machines Disabled . | . . . . Actions | -11 -10 -10 -7 --------- Run | Yrd Mat Sub Rec Total 829 | 239 247 169 174 Wait 10 | . 10 . . Move 731 | 194 206 165 166 Hop . | . . . . Pick Up 11 | 3 4 . 4 Fast Attach 9 | 7 . . 2 Attach 6 | . . 4 2 Detach . | . . . . Swap 4 | . 4 . . Drop 1 | . 1 . . Fire 57 | 35 22 . . Melee . | . . . . Ram . | . . . . Kick . | . . . . Crush . | . . . . Escape Stasis . | . . . . Rewire . | . . . . Trap . | . . . . Miscellaneous . | . . . . Route ------- -11/Scrapyard -10/Materials (discovered 4 exits: [*Mat] / [*Min x2] / [*Sub]) -10/Subcaves -7/Recycling History --------- Turn | Location | Event 14 | -11/Scrapyard | Discovered new exit (range 15) 287 | -11/Scrapyard | Entered Materials 287 | -10/Materials | Discovered new exit (range 15) 318 | -10/Materials | Build established: Mutant 396 | -10/Materials | Discovered new exit (range 4) 434 | -10/Materials | Discovered new exit (range 10) 554 | -10/Materials | Discovered new exit (range 3) 564 | -10/Materials | Entered Subcaves 627 | -10/Subcaves | Disturbed a concealed Subdweller 692 | -10/Subcaves | Discovered new exit (range 16) 710 | -10/Subcaves | Core integrity fell below 50% 720 | -10/Subcaves | Core integrity fell below 20% 724 | -10/Subcaves | Entered Recycling 727 | -7/Recycling | Found Scrap Engine 752 | -7/Recycling | Lost 7 parts (1p3n1u2w) 965 | -7/Recycling | Destroyed by Y-54 Guardian with Gatling Laser Last Messages --------------- for transmitting commands and remotely augmenting the system defenses of activated squads. >>Query(Experimental Components) One of the first applications of [Sigix] Technology has been to make improvements to existing components, focusing on those which will be useful even after major technological breakthroughs replace certain classes of components entirely. However, as even more advanced technologies reach completion some Experimental Components may be retired as well. At that point I should make their destruction a priority to prevent them from falling into [Derelict] hands. 00848_ Acquired Imp. Titanium Leg. 00889_ Connecting with Terminal... >>Trojan(Botnet) Trojan loaded successfully. Testing... Terminal linked with 0 systems. Awaiting botnet instructions. 00928_ Connecting with Terminal... 00944_ Y-54 Guardian springs to life. 00960_ Med. Laser destroyed. Map ----- +----------------------------------------------------+ | ??????# """ #??????# #????????????????????? | | ??????# """ #??????# #????????????????????? | | ??????# """ #?????## ##???????????????????? | | ??????# ####### ###?????????????????? | | ??????# ??????????? | | ??????# ####### ?????????? | | ??????# #?????# ??????????? | | ??????# #?????# ##########??????????? | | ????### ##+##+#?????#######???????????????????? | | ????# # #???????????????????????????????? | | ????# # """ ##??????????????????????????????? | | ????# # """ "#??????????????????????????????? | | ????### # """ "#??????????????????????????????? | | ??????# # "#???????##?????????????????????? | | ??????#+## # """ T#?###### ###???????????????????? | | ?????????# # """ "#?# #???????????????????? | | ?????????# # """ "### #???????????????????? | | ?????????? # "#? #???????????????????? | | ?????????? # ##?# #???????????????????? | | ?????????? # #??# #???????????????????? | | ?????????? # " " #??# #???????????????????? | | ?????????# # "Y" #??# #???????????????????? | | ?????????# + """ #??# #???????????????????? | | ?????????# # #??# #???????????????????? | | ?????????# ###+#########+#########+#####?????????? | | ?????????# u @ r ????????? | | ?????????+ ????????? | | ?????????# Y ????????? | | ?????????### #######+###############?????????? | | ???????????# #???? ??????????????????????? | | ???????????# +?? ????????????????????? | | ???????????## #### ??????????????????? | | ????????????##???# #????????????????? | | ?????????????????################????????????????? | | ?????????????????????????????????????????????????? | | ?????????????????????????????????????????????????? | | | | | | | | | | | | | | | | | | | | | | | | | | | | | +----------------------------------------------------+ Best States ------------- Heat Dissipation 25 Energy Generation 10 Energy Capacity 250 Matter Stores 300 Matter Capacity 450 Sight Range 16 Terrain Scan Density 10 Evasion (%) 55 Item Schematics ----------------- None Robot Schematics ------------------ None Fabricated ------------ Nothing Alien Tech Used ----------------- None Achievements -------------- None Challenges ------------ None Game ------ Seed CompositeFieldRefractor Manual? 0 Play Time 00:13:27 Cumulative 40.5 hours Start 2024.05.28 @ 19:35:28 End 2024.05.28 @ 19:49:26 Sessions 1 Manual Loads 0 Difficulty Rogue Special Mode None Game No. 33 Rogue 33 Adventurer 0 Explorer 0 Win Type - Total 0 Types 0/0/0/0/0/0/0/0/0 Lore% 19 Gallery% 32 Achievement% 23 Wizard Run 0 Options --------- Layout 0 ASCII 0 Keyboard 0 Movement Mouse Keybinds 0 Fullscreen 1 Font 36/Smallcaps Map View 76x50 Zoom Use 0% Tactical HUD 1 Map Filters NONE Filters NONE Steam 1 RUN: 568ee4e0-bfdf-432b-aa11-e01d27729369